[Event "Najdorf Memorial-A 2022"]
[Site "Warsaw"]
[Date "2022.07.12"]
[Round "4.2"]
[White "Hemmerling, Jaroslaw"]
[Black "Sriram, Jha"]
[Result "1/2-1/2"]
[ECO "B76"]
[WhiteElo "1854"]
[BlackElo "2361"]
[Annotator "ChessBase"]
[PlyCount "235"]
[EventDate "2022.07.09"]
[EventType "swiss"]
[EventCountry "POL"]
[SourceTitle "playchess.com"]
[Source "ChessBase"]
[SourceQuality "1"]
[TimeControl "40/5400+30:1800+30"]

1. e4 {[%emt 0:00:02]} c5 {[%emt 0:01:06]} 2. Nf3 {[%emt 0:00:09]} d6 {[%emt 0:00:12]} 3. d4 {[%emt 0:00:07]} cxd4 {[%emt 0:00:05]} 4. Nxd4 {[%emt 0:00:05]} Nf6 {[%emt 0:00:05]} 5. Nc3 {[%emt 0:00:10]} g6 {[%emt 0:00:05]} 6. Be3 {[%emt 0:00:18]} Bg7 {[%emt 0:00:04]} 7. f3 {[%emt 0:00:08]} O-O {[%emt 0:00:07]} 8. Qd2 {[%emt 0:00:02]} Nc6 {[%emt 0:00:03]} 9. O-O-O {[%emt 0:00:11]} d5 {[%emt 0:00:03]} 10. exd5 {[%emt 0:00:08]} Nxd5 {[%emt 0:00:01]} 11. Nxc6 {[%emt 0:00:39]} bxc6 {[%emt 0:00:02]} 12. Bd4 {[%emt 0:00:11]} Bxd4 {[%emt 0:04:32]} 13. Qxd4 {[%emt 0:00:19]} Qb6 {[%emt 0:00:07]} 14. Nxd5 {[%emt 0:34:37]} cxd5 {[%emt 0:00:56]} 15. Qxb6 {[%emt 0:03:01]} axb6 {[%emt 0:00:02]} 16. Rxd5 {[%emt 0:01:34]} Rxa2 {[%emt 0:19:36]} 17. Rd1 {[%emt 0:03:03]} Be6 {[%emt 0:12:20]} 18. Bd3 {[%emt 0:03:33]} Rc8 {[%emt 0:04:40]} 19. Rhe1 {[%emt 0:03:45]} Kg7 {[%emt 0:01:13]} 20. Re5 {[%emt 0:10:10]} h5 {[%emt 0:14:50]} 21. Rb5 {[%emt 0:02:47]} Rc6 {[%emt 0:03:06]} 22. Kb1 {[%emt 0:02:44]} f5 {[%emt 0:01:31]} 23. Be2 {[%emt 0:06:50]} Ra7 {[%emt 0:08:57]} 24. Rb4 {[%emt 0:05:14]} Ba2+ {[%emt 0:01:46]} 25. Kc1 {[%emt 0:00:34]} Bf7 {[%emt 0:00:04]} 26. Bb5 {[%emt 0:05:49]} Ra1+ {[%emt 0:02:55]} 27. Kd2 {[%emt 0:00:01]} Rd6+ {[%emt 0:00:11]} 28. Bd3 {[%emt 0:00:02]} Ra5 {[%emt 0:00:23]} 29. Ke3 {[%emt 0:03:13]} e5 {[%emt 0:05:28]} 30. f4 {[%emt 0:06:57]} exf4+ {[%emt 0:03:56]} 31. Kxf4 {[%emt 0:02:43]} Kf6 {[%emt 0:03:14]} 32. Be2 {[%emt 0:03:07]} g5+ {[%emt 0:00:30]} 33. Kg3 {[%emt 0:00:11]} Rc6 {[%emt 0:04:36]} 34. c3 {[%emt 0:00:18]} h4+ {[%emt 0:01:35]} 35. Kf2 {[%emt 0:00:08]} g4 {[%emt 0:00:29]} 36. Rbd4 {[%emt 0:00:46]} Kg5 {[%emt 0:02:17]} 37. Rd6 {[%emt 0:00:41]} Rac5 {[%emt 0:00:12]} 38. Rxc6 {[%emt 0:00:08]} Rxc6 {[%emt 0:00:01]} 39. Rd7 {[%emt 0:01:50]} Be6 {[%emt 0:00:38]} 40. Rd8 {[%emt 0:00:00]} Bb3 {[%emt 0:00:00]} 41. Rd7 {[%emt 0:08:22]} Re6 {[%emt 0:02:34]} 42. Bd3 {[%emt 0:00:27]} Rh6 {[%emt 0:07:27]} 43. Rd8 {[%emt 0:07:02]} Kf4 {[%emt 0:02:33]} 44. Rd4+ {[%emt 0:00:57]} Kg5 {[%emt 0:02:11]} 45. Rd8 {[%emt 0:00:04]} Rc6 {[%emt 0:00:54]} 46. Rf8 {[%emt 0:05:54]} Be6 {[%emt 0:01:24]} 47. Rd8 {[%emt 0:00:02]} Kf4 {[%emt 0:00:31]} 48. Rd4+ {[%emt 0:00:05]} Ke5 {[%emt 0:00:43]} 49. Rd8 {[%emt 0:03:12]} Rc7 {[%emt 0:08:39]} 50. Rb8 {[%emt 0:00:56]} Rd7 {[%emt 0:00:17]} 51. Ke2 {[%emt 0:01:26]} Rd6 {[%emt 0:05:24]} 52. Rh8 {[%emt 0:02:12]} Bd5 {[%emt 0:00:21]} 53. Rf8 {[%emt 0:01:53]} Bxg2 {[%emt 0:02:54]} 54. Rxf5+ {[%emt 0:00:02]} Ke6 {[%emt 0:00:01]} 55. Rh5 {[%emt 0:05:01]} Bf3+ {[%emt 0:01:44]} 56. Ke3 {[%emt 0:00:01]} g3 {[%emt 0:00:53]} 57. Bf5+ {[%emt 0:01:28]} Kf6 {[%emt 0:00:57]} 58. Kxf3 {[%emt 0:02:35]} gxh2 {[%emt 0:00:07]} 59. Rxh4 {[%emt 0:00:13]} Kxf5 {[%emt 0:02:06]} 60. Rh5+ {[%emt 0:00:12]} Ke6 {[%emt 0:00:38]} 61. Rxh2 {[%emt 0:00:06]} Kd7 {[%emt 0:00:17]} 62. Ke3 {[%emt 0:00:22]} Kc6 {[%emt 0:00:08]} 63. Rd2 {[%emt 0:00:05]} Rh6 {[%emt 0:00:06]} 64. Kd3 {[%emt 0:00:13]} Rh4 {[%emt 0:00:09]} 65. Rg2 {[%emt 0:00:40]} Rh6 {[%emt 0:00:23]} 66. Kc4 {[%emt 0:00:03]} Rh4+ {[%emt 0:00:05]} 67. Kb3 {[%emt 0:00:08]} Rh6 {[%emt 0:00:03]} 68. Rg4 {[%emt 0:00:11]} Rf6 {[%emt 0:00:08]} 69. Kb4 {[%emt 0:00:12]} Rh6 {[%emt 0:00:07]} 70. Rc4+ {[%emt 0:00:48]} Kb7 {[%emt 0:00:07]} 71. Kb5 {[%emt 0:00:08]} Rh5+ {[%emt 0:00:02]} 72. Kb4 {[%emt 0:00:17]} Rg5 {[%emt 0:00:09]} 73. Rd4 {[%emt 0:01:00]} Rh5 {[%emt 0:00:05]} 74. Rd6 {[%emt 0:00:30]} Rg5 {[%emt 0:00:13]} 75. b3 {[%emt 0:00:13]} Rh5 {[%emt 0:00:10]} 76. c4 {[%emt 0:00:12]} Rg5 {[%emt 0:00:05]} 77. Rd5 {[%emt 0:00:21]} Rg3 {[%emt 0:03:39]} 78. Rh5 {[%emt 0:00:27]} Rf3 {[%emt 0:00:49]} 79. Ka4 {[%emt 0:00:03]} Rf7 {[%emt 0:02:27]} 80. Kb5 {[%emt 0:00:34]} Rg7 {[%emt 0:00:08]} 81. Rd5 {[%emt 0:00:07]} Rh7 {[%emt 0:00:29]} 82. Rg5 {[%emt 0:00:06]} Rf7 {[%emt 0:00:06]} 83. Rh5 {[%emt 0:00:06]} Rg7 {[%emt 0:00:04]} 84. Re5 {[%emt 0:03:04]} Rh7 {[%emt 0:00:12]} 85. b4 {[%emt 0:00:04]} Rg7 {[%emt 0:00:06]} 86. Rd5 {[%emt 0:00:04]} Rh7 {[%emt 0:00:06]} 87. Rf5 {[%emt 0:00:06]} Rg7 {[%emt 0:00:04]} 88. Rh5 {[%emt 0:00:05]} Rf7 {[%emt 0:00:06]} 89. Rh6 {[%emt 0:01:14]} Rf5+ {[%emt 0:00:03]} 90. c5 {[%emt 0:00:16]} bxc5 {[%emt 0:00:10]} 91. Rh7+ {[%emt 0:00:30]} Kb8 {[%emt 0:00:27]} 92. bxc5 {[%emt 0:00:08]} Rf6 {[%emt 0:00:04]} 93. Rg7 {[%emt 0:01:08]} Rh6 {[%emt 0:00:05]} 94. Rf7 {[%emt 0:00:05]} Rg6 {[%emt 0:00:05]} 95. Re7 {[%emt 0:00:04]} Rh6 {[%emt 0:00:04]} 96. Rd7 {[%emt 0:00:04]} Kc8 {[%emt 0:01:04]} 97. Ra7 {[%emt 0:01:17]} Rg6 {[%emt 0:00:26]} 98. Re7 {[%emt 0:01:46]} Rh6 {[%emt 0:00:09]} 99. Rf7 {[%emt 0:00:08]} Rg6 {[%emt 0:00:06]} 100. Rh7 {[%emt 0:00:04]} Rf6 {[%emt 0:00:05]} 101. Rh1 {[%emt 0:02:09]} Rg6 {[%emt 0:00:11]} 102. Rh4 {[%emt 0:00:27]} Rf6 {[%emt 0:00:10]} 103. Rh5 {[%emt 0:00:25]} Rg6 {[%emt 0:00:20]} 104. Rd5 {[%emt 0:00:25]} Rh6 {[%emt 0:00:10]} 105. Re5 {[%emt 0:00:19]} Rg6 {[%emt 0:00:14]} 106. Rf5 {[%emt 0:00:01]} Rh6 {[%emt 0:00:05]} 107. Rg5 {[%emt 0:00:05]} Rf6 {[%emt 0:00:02]} 108. Rg8+ {[%emt 0:00:29]} Kc7 {[%emt 0:00:10]} 109. Rg7+ {[%emt 0:00:25]} Kc8 {[%emt 0:00:09]} 110. Rg5 {[%emt 0:00:03]} Rh6 {[%emt 0:00:07]} 111. c6 {[%emt 0:00:26]} Rh1 {[%emt 0:00:11]} 112. Kb6 {[%emt 0:01:00]} Rb1+ {[%emt 0:00:07]} 113. Rb5 {[%emt 0:01:18]} Rxb5+ {[%emt 0:00:36]} 114. Kxb5 {[%emt 0:00:02]} Kc7 {[%emt 0:00:05]} 115. Kc5 {[%emt 0:00:11]} Kc8 {[%emt 0:00:07]} 116. Kd6 {[%emt 0:00:05]} Kd8 {[%emt 0:00:01]} 117. c7+ {[%emt 0:00:11]} Kc8 {[%emt 0:00:03]} 118. Kc6 1/2-1/2

[Event "Najdorf Memorial-A 2022"]
[Site "Warsaw"]
[Date "2022.07.12"]
[Round "4.3"]
[White "Deszczynski, Adam"]
[Black "Noe, Christopher"]
[Result "0-1"]
[ECO "B10"]
[WhiteElo "2321"]
[BlackElo "2505"]
[Annotator "ChessBase"]
[PlyCount "62"]
[EventDate "2022.07.09"]
[EventType "swiss"]
[EventCountry "POL"]
[SourceTitle "playchess.com"]
[Source "ChessBase"]
[SourceQuality "1"]
[TimeControl "40/5400+30:1800+30"]

1. e4 {[%emt 0:00:41]} c6 {[%emt 0:00:08]} 2. Nf3 {[%emt 0:03:55]} d5 {[%emt 0:00:09]} 3. d3 {[%emt 0:01:59]} e6 {[%emt 0:01:04]} 4. Qe2 {[%emt 0:01:14]} Nf6 {[%emt 0:00:10]} 5. g3 {[%emt 0:02:25]} Be7 {[%emt 0:00:06]} 6. Bg2 {[%emt 0:00:30]} O-O {[%emt 0:00:06]} 7. O-O {[%emt 0:00:59]} c5 {[%emt 0:03:00]} 8. e5 {[%emt 0:05:08]} Nfd7 {[%emt 0:00:07]} 9. h4 {[%emt 0:00:36]} Nc6 {[%emt 0:00:25]} 10. Bf4 {[%emt 0:00:33]} b5 {[%emt 0:00:34]} 11. Nbd2 {[%emt 0:03:36]} a5 {[%emt 0:00:31]} 12. Rfe1 {[%emt 0:02:36]} Ba6 {[%emt 0:00:09]} 13. Nf1 {[%emt 0:10:16]} b4 {[%emt 0:00:21]} 14. Ne3 {[%emt 0:03:48]} Nd4 {[%emt 0:11:49]} 15. Nxd4 {[%emt 0:07:58]} cxd4 {[%emt 0:00:07]} 16. Ng4 {[%emt 0:00:05]} Re8 {[%emt 0:00:32]} 17. Bg5 {[%emt 0:10:08]} Bxg5 {[%emt 0:06:23]} 18. hxg5 {[%emt 0:00:07]} Qxg5 {[%emt 0:00:06]} 19. f4 {[%emt 0:05:36]} Qg6 {[%emt 0:05:38]} 20. Kf2 {[%emt 0:01:02]} Nc5 {[%emt 0:05:03]} 21. Nh2 {[%emt 0:08:04]} Rac8 {[%emt 0:16:55]} 22. Rad1 {[%emt 0:13:30]} Ne4+ {[%emt 0:00:41]} 23. dxe4 {[%emt 0:00:12]} Bxe2 {[%emt 0:00:18]} 24. Rxe2 {[%emt 0:00:02]} Rc4 {[%emt 0:04:33]} 25. Rdd2 {[%emt 0:02:50]} Rec8 {[%emt 0:02:22]} 26. Nf3 {[%emt 0:02:05]} dxe4 27. Nxd4 {[%emt 0:00:24]} e3+ {[%emt 0:05:35]} 28. Rxe3 {[%emt 0:01:59]} Rxd4 {[%emt 0:00:05]} 29. Rxd4 {[%emt 0:00:45]} Qxc2+ {[%emt 0:00:28]} 30. Re2 {[%emt 0:04:36]} Qc5 {[%emt 0:00:25]} 31. Red2 {[%emt 0:00:21]} Rd8 {[%emt 0:00:06]} 0-1

[Event "Najdorf Memorial-A 2022"]
[Site "Warsaw"]
[Date "2022.07.12"]
[Round "4.3"]
[White "Hertlein, Irena"]
[Black "Sowul, Bartosz"]
[Result "0-1"]
[ECO "A56"]
[WhiteElo "1850"]
[BlackElo "2283"]
[Annotator "ChessBase"]
[PlyCount "60"]
[EventDate "2022.07.09"]
[EventType "swiss"]
[EventCountry "POL"]
[SourceTitle "playchess.com"]
[Source "ChessBase"]
[SourceQuality "1"]
[TimeControl "40/5400+30:1800+30"]

1. d4 Nf6 2. c4 c5 3. d5 e5 4. Nc3 d6 5. e4 Be7 6. Bd3 O-O 7. Nge2 Ne8 8. h3 Bg5 9. g4 Na6 10. Bxg5 Qxg5 11. Qd2 Qd8 12. Ng3 Bd7 13. Nf5 Rb8 14. Nb5 Qb6 15. a3 Bxb5 16. cxb5 c4 17. Bxc4 Nc5 18. f3 Kh8 19. b4 Nd7 20. Qe3 Qd8 21. O-O g6 22. Ng3 Qh4 23. Kh2 f5 24. exf5 gxf5 25. Qe2 Ng7 26. Bd3 e4 27. fxe4 f4 28. Nh1 Ne5 29. Nf2 Qg3+ 30. Kh1 Nf3 0-1

[Event "Najdorf Memorial-A 2022"]
[Site "Warsaw"]
[Date "2022.07.12"]
[Round "4.4"]
[White "Kaczmarek, Arkadiusz"]
[Black "Sarkar, Justin"]
[Result "0-1"]
[ECO "D37"]
[WhiteElo "2147"]
[BlackElo "2346"]
[Annotator "ChessBase"]
[PlyCount "78"]
[EventDate "2022.07.09"]
[EventType "swiss"]
[EventCountry "POL"]
[SourceTitle "playchess.com"]
[Source "ChessBase"]
[SourceQuality "1"]
[TimeControl "40/5400+30:1800+30"]

1. d4 {[%emt 0:00:05]} Nf6 2. c4 e6 {[%emt 0:01:08]} 3. Nf3 {[%emt 0:00:33]} d5 {[%emt 0:01:14]} 4. Nc3 {[%emt 0:00:18]} b6 {[%emt 0:03:45]} 5. cxd5 {[%emt 0:06:16]} exd5 {[%emt 0:00:08]} 6. Bg5 {[%emt 0:02:38]} Be7 {[%emt 0:01:12]} 7. e3 {[%emt 0:00:35]} Bb7 {[%emt 0:01:39]} 8. Bb5+ {[%emt 0:02:30]} c6 {[%emt 0:01:52]} 9. Bd3 {[%emt 0:00:18]} Nbd7 {[%emt 0:01:12]} 10. O-O {[%emt 0:01:48]} O-O {[%emt 0:00:44]} 11. Qc2 {[%emt 0:12:00]} Re8 {[%emt 0:03:00]} 12. Rac1 {[%emt 0:03:07]} c5 {[%emt 0:04:34]} 13. Bxf6 {[%emt 0:32:54]} Nxf6 {[%emt 0:00:17]} 14. Bb5 {[%emt 0:00:11]} Rf8 {[%emt 0:00:36]} 15. Ne5 {[%emt 0:04:10]} Bd6 {[%emt 0:06:02]} 16. f4 {[%emt 0:01:04]} c4 {[%emt 0:04:38]} 17. Qe2 {[%emt 0:09:59]} a6 {[%emt 0:04:12]} 18. Ba4 {[%emt 0:00:12]} b5 {[%emt 0:02:25]} 19. Bc2 {[%emt 0:00:12]} Ne4 {[%emt 0:00:27]} 20. Bxe4 {[%emt 0:07:47]} dxe4 {[%emt 0:00:06]} 21. a4 {[%emt 0:00:19]} f6 {[%emt 0:06:27]} 22. Ng4 {[%emt 0:00:33]} Qd7 {[%emt 0:14:01]} 23. Nf2 {[%emt 0:02:22]} f5 {[%emt 0:02:21]} 24. b3 {[%emt 0:04:31]} cxb3 {[%emt 0:01:43]} 25. axb5 {[%emt 0:00:12]} axb5 {[%emt 0:00:15]} 26. Qb2 {[%emt 0:00:44]} b4 {[%emt 0:08:55]} 27. Qxb3+ {[%emt 0:00:25]} Kh8 {[%emt 0:00:30]} 28. Nb1 {[%emt 0:00:49]} Ra5 {[%emt 0:00:40]} 29. Qb2 {[%emt 0:07:03]} Bd5 {[%emt 0:00:55]} 30. Qe2 {[%emt 0:00:10]} Ra2 {[%emt 0:01:10]} 31. Rc2 {[%emt 0:00:14]} Rxc2 {[%emt 0:01:16]} 32. Qxc2 {[%emt 0:00:02]} Rc8 {[%emt 0:00:08]} 33. Qb2 {[%emt 0:02:19]} Qc7 {[%emt 0:02:27]} 34. Nd1 {[%emt 0:00:32]} Qc2 {[%emt 0:02:23]} 35. h3 {[%emt 0:00:01]} Ba2 {[%emt 0:02:30]} 36. Qxc2 {[%emt 0:01:01]} Rxc2 {[%emt 0:00:04]} 37. Nf2 {[%emt 0:00:14]} b3 {[%emt 0:00:22]} 38. Rd1 {[%emt 0:00:47]} b2 {[%emt 0:00:45]} 39. Nd2 {[%emt 0:00:33]} Rxd2 {[%emt 0:00:29]} 0-1

[Event "Najdorf Memorial-A 2022"]
[Site "Warsaw"]
[Date "2022.07.12"]
[Round "4.4"]
[White "Szewczyk, Mariusz"]
[Black "Lewandrowski, Tomasz"]
[Result "1-0"]
[ECO "B30"]
[WhiteElo "2103"]
[BlackElo "1902"]
[Annotator "ChessBase"]
[PlyCount "93"]
[EventDate "2022.07.09"]
[EventType "swiss"]
[EventCountry "POL"]
[SourceTitle "playchess.com"]
[Source "ChessBase"]
[SourceQuality "1"]
[TimeControl "40/5400+30:1800+30"]

1. e4 {[%emt 0:00:28]} c5 {[%emt 0:00:09]} 2. Nf3 {[%emt 0:00:14]} Nc6 {[%emt 0:00:11]} 3. Bb5 {[%emt 0:00:14]} d6 {[%emt 0:00:24]} 4. O-O {[%emt 0:01:09]} Bd7 {[%emt 0:00:22]} 5. c3 {[%emt 0:00:23]} a6 {[%emt 0:00:39]} 6. Bxc6 {[%emt 0:00:41]} Bxc6 {[%emt 0:00:07]} 7. Re1 {[%emt 0:00:04]} Nf6 {[%emt 0:03:47]} 8. d4 {[%emt 0:01:10]} cxd4 {[%emt 0:08:36]} 9. cxd4 {[%emt 0:01:26]} d5 {[%emt 0:10:58]} 10. e5 {[%emt 0:00:32]} Ne4 {[%emt 0:00:15]} 11. e6 {[%emt 0:02:38]} f6 {[%emt 0:00:39]} 12. Bf4 {[%emt 0:09:59]} g6 {[%emt 0:07:46]} 13. Nfd2 {[%emt 0:01:59]} Nd6 {[%emt 0:01:36]} 14. Nc3 {[%emt 0:01:29]} Nf5 {[%emt 0:02:26]} 15. Nf1 {[%emt 0:02:42]} Qb6 {[%emt 0:03:11]} 16. Ne3 {[%emt 0:00:46]} Nxe3 {[%emt 0:02:22]} 17. Rxe3 {[%emt 0:00:37]} Bg7 {[%emt 0:04:11]} 18. Rh3 {[%emt 0:07:34]} f5 {[%emt 0:01:25]} 19. Qd2 {[%emt 0:08:47]} Bxd4 {[%emt 0:04:01]} 20. Rd1 {[%emt 0:01:47]} Bf6 {[%emt 0:02:09]} 21. Nxd5 {[%emt 0:04:25]} Bxd5 {[%emt 0:00:14]} 22. Qxd5 {[%emt 0:00:25]} Rd8 {[%emt 0:01:37]} 23. Qxd8+ {[%emt 0:00:13]} Qxd8 {[%emt 0:00:01]} 24. Rxd8+ {[%emt 0:00:09]} Kxd8 {[%emt 0:00:10]} 25. Rd3+ {[%emt 0:00:08]} Kc8 {[%emt 0:01:18]} 26. Rd7 {[%emt 0:00:12]} g5 {[%emt 0:00:52]} 27. Bc7 {[%emt 0:00:50]} b5 {[%emt 0:05:45]} 28. b4 {[%emt 0:02:50]} h5 {[%emt 0:00:44]} 29. Kf1 {[%emt 0:01:59]} Rh6 {[%emt 0:00:53]} 30. Ba5 {[%emt 0:01:34]} g4 {[%emt 0:03:19]} 31. Ra7 {[%emt 0:00:45]} h4 {[%emt 0:02:35]} 32. Rxa6 {[%emt 0:00:24]} Be5 {[%emt 0:00:29]} 33. Rc6+ {[%emt 0:01:42]} Kb7 {[%emt 0:00:30]} 34. Rb6+ {[%emt 0:00:25]} Ka7 {[%emt 0:01:35]} 35. Rxb5 {[%emt 0:01:52]} Rxe6 {[%emt 0:00:38]} 36. Rc5 {[%emt 0:00:35]} f4 {[%emt 0:12:36]} 37. Bc7 {[%emt 0:03:28]} Bxc7 {[%emt 0:06:57]} 38. Rxc7+ {[%emt 0:00:07]} Kb6 {[%emt 0:00:10]} 39. Rc4 {[%emt 0:00:04]} Rf6 {[%emt 0:00:27]} 40. Re4 {[%emt 0:00:00]} e6 {[%emt 0:00:00]} 41. h3 {[%emt 0:03:30]} gxh3 {[%emt 0:05:36]} 42. gxh3 {[%emt 0:00:07]} Kc6 {[%emt 0:00:05]} 43. Ke2 {[%emt 0:02:08]} Kd5 {[%emt 0:00:31]} 44. Kf3 {[%emt 0:00:28]} e5 {[%emt 0:00:22]} 45. b5 {[%emt 0:00:12]} Rf8 {[%emt 0:01:33]} 46. Rb4 {[%emt 0:01:17]} Ra8 {[%emt 0:00:57]} 47. b6 {[%emt 0:00:33]} 1-0

[Event "Najdorf Memorial-A 2022"]
[Site "Warsaw"]
[Date "2022.07.12"]
[Round "4.5"]
[White "Raczek, Krzysztof"]
[Black "Danielyan, Vahe"]
[Result "1/2-1/2"]
[ECO "A21"]
[WhiteElo "2114"]
[BlackElo "2295"]
[Annotator "ChessBase"]
[PlyCount "121"]
[EventDate "2022.07.09"]
[EventType "swiss"]
[EventCountry "POL"]
[SourceTitle "playchess.com"]
[Source "ChessBase"]
[SourceQuality "1"]
[TimeControl "40/5400+30:1800+30"]

1. c4 {[%emt 0:00:03]} e5 {[%emt 0:01:37]} 2. Nc3 {[%emt 0:00:02]} Bb4 {[%emt 0:00:10]} 3. Qb3 {[%emt 0:00:51]} a5 {[%emt 0:00:07]} 4. a3 {[%emt 0:00:15]} Bxc3 {[%emt 0:00:18]} 5. Qxc3 {[%emt 0:00:02]} Nc6 {[%emt 0:00:06]} 6. Nf3 {[%emt 0:02:23]} d6 {[%emt 0:03:26]} 7. b3 {[%emt 0:00:17]} Nf6 {[%emt 0:00:34]} 8. Bb2 {[%emt 0:00:56]} O-O {[%emt 0:00:04]} 9. e3 {[%emt 0:00:37]} Ne4 {[%emt 0:00:06]} 10. Qc2 {[%emt 0:01:19]} f5 {[%emt 0:00:02]} 11. d4 {[%emt 0:07:24]} Qe8 {[%emt 0:00:51]} 12. Be2 {[%emt 0:02:40]} exd4 {[%emt 0:00:15]} 13. exd4 {[%emt 0:01:16]} Ne7 {[%emt 0:03:45]} 14. O-O {[%emt 0:04:17]} Ng6 {[%emt 0:00:04]} 15. Bc1 {[%emt 0:00:14]} Bd7 {[%emt 0:04:50]} 16. Bd3 {[%emt 0:03:07]} Qf7 {[%emt 0:03:14]} 17. Re1 {[%emt 0:02:48]} Rae8 {[%emt 0:01:24]} 18. Be3 {[%emt 0:13:39]} c6 {[%emt 0:03:31]} 19. b4 {[%emt 0:03:16]} axb4 {[%emt 0:10:28]} 20. axb4 {[%emt 0:00:04]} Qf6 {[%emt 0:00:22]} 21. Rad1 {[%emt 0:13:02]} Kh8 {[%emt 0:08:29]} 22. Bc1 {[%emt 0:20:13]} h6 {[%emt 0:00:09]} 23. Qb3 {[%emt 0:07:32]} Qf7 {[%emt 0:03:01]} 24. d5 {[%emt 0:01:20]} cxd5 {[%emt 0:00:04]} 25. cxd5 {[%emt 0:00:43]} Ra8 {[%emt 0:00:57]} 26. b5 {[%emt 0:01:11]} Rfc8 {[%emt 0:00:37]} 27. Bxe4 {[%emt 0:01:04]} fxe4 {[%emt 0:00:06]} 28. Rxe4 {[%emt 0:00:51]} Ra1 {[%emt 0:04:42]} 29. Bb2 {[%emt 0:08:11]} Rxd1+ {[%emt 0:01:37]} 30. Qxd1 {[%emt 0:00:01]} Bxb5 {[%emt 0:02:13]} 31. Qd2 {[%emt 0:02:44]} Kg8 {[%emt 0:01:04]} 32. h4 {[%emt 0:01:19]} Bd7 {[%emt 0:01:10]} 33. Qb4 {[%emt 0:01:01]} Bf5 {[%emt 0:03:33]} 34. Rd4 {[%emt 0:00:00]} Rc2 {[%emt 0:01:28]} 35. Ba3 {[%emt 0:00:45]} Ne5 {[%emt 0:06:12]} 36. Qxd6 {[%emt 0:00:33]} Nxf3+ {[%emt 0:02:13]} 37. gxf3 {[%emt 0:00:02]} Qe8 {[%emt 0:00:29]} 38. Kg2 {[%emt 0:00:38]} Kh7 {[%emt 0:01:03]} 39. Qf4 {[%emt 0:00:48]} Bg6 {[%emt 0:02:53]} 40. Rd2 {[%emt 0:00:00]} Rxd2 {[%emt 0:00:00]} 41. Qxd2 {[%emt 0:02:52]} Bf5 {[%emt 0:07:40]} 42. Qd4 {[%emt 0:02:28]} Qg6+ {[%emt 0:02:04]} 43. Kh2 {[%emt 0:00:38]} b5 {[%emt 0:00:05]} 44. d6 {[%emt 0:01:06]} Bd7 {[%emt 0:00:29]} 45. Qe4 {[%emt 0:01:01]} Qf5 {[%emt 0:01:07]} 46. Kg3 {[%emt 0:00:51]} Kg6 {[%emt 0:00:52]} 47. Bb2 {[%emt 0:00:45]} b4 {[%emt 0:01:16]} 48. Qg4+ {[%emt 0:00:54]} Qxg4+ {[%emt 0:01:25]} 49. fxg4 {[%emt 0:00:02]} b3 {[%emt 0:00:15]} 50. Kf4 {[%emt 0:03:51]} Kf7 {[%emt 0:00:05]} 51. f3 {[%emt 0:01:01]} g6 {[%emt 0:00:18]} 52. Ke5 {[%emt 0:00:42]} h5 {[%emt 0:00:55]} 53. Kf4 {[%emt 0:00:34]} hxg4 {[%emt 0:00:50]} 54. fxg4 {[%emt 0:00:06]} Ke6 {[%emt 0:00:08]} 55. Kg5 {[%emt 0:04:45]} Kxd6 {[%emt 0:00:12]} 56. h5 {[%emt 0:00:10]} gxh5 {[%emt 0:00:06]} 57. gxh5 {[%emt 0:00:07]} Bb5 {[%emt 0:00:06]} 58. h6 {[%emt 0:00:06]} Bd3 {[%emt 0:00:03]} 59. Kf6 {[%emt 0:00:05]} Kd5 {[%emt 0:00:06]} 60. Kg7 {[%emt 0:00:04]} Kc4 {[%emt 0:00:06]} 61. h7 {[%emt 0:00:04]} 1/2-1/2

[Event "Najdorf Memorial-A 2022"]
[Site "Warsaw"]
[Date "2022.07.12"]
[Round "4.5"]
[White "Pires, Emanuel Joao Robarts"]
[Black "Lasota, Adam"]
[Result "1/2-1/2"]
[ECO "B00"]
[WhiteElo "2062"]
[BlackElo "1892"]
[Annotator "ChessBase"]
[PlyCount "136"]
[EventDate "2022.07.09"]
[EventType "swiss"]
[EventCountry "POL"]
[SourceTitle "playchess.com"]
[Source "ChessBase"]
[SourceQuality "1"]
[TimeControl "40/5400+30:1800+30"]

1. e4 {[%emt 0:00:04]} b6 {[%emt 0:01:08]} 2. d3 {[%emt 0:00:17]} Bb7 {[%emt 0:00:16]} 3. f4 {[%emt 0:00:04]} e6 {[%emt 0:03:07]} 4. Nf3 {[%emt 0:00:05]} d5 {[%emt 0:01:41]} 5. e5 {[%emt 0:00:02]} h5 {[%emt 0:01:31]} 6. Be2 {[%emt 0:00:06]} Nh6 {[%emt 0:01:51]} 7. O-O {[%emt 0:00:06]} Nf5 {[%emt 0:00:26]} 8. c3 {[%emt 0:00:05]} Be7 {[%emt 0:02:43]} 9. Na3 {[%emt 0:01:29]} c5 {[%emt 0:03:47]} 10. Nc2 {[%emt 0:00:07]} Nc6 {[%emt 0:02:17]} 11. Bd2 {[%emt 0:01:55]} d4 {[%emt 0:09:30]} 12. Be1 {[%emt 0:00:59]} dxc3 {[%emt 0:04:06]} 13. bxc3 {[%emt 0:00:29]} Qc7 {[%emt 0:04:19]} 14. Bf2 {[%emt 0:03:58]} Rd8 {[%emt 0:03:00]} 15. Qc1 {[%emt 0:10:51]} Na5 {[%emt 0:05:15]} 16. Nd2 {[%emt 0:04:51]} Ba6 {[%emt 0:02:33]} 17. Ne1 {[%emt 0:03:53]} c4 {[%emt 0:03:40]} 18. d4 {[%emt 0:00:45]} Bb7 {[%emt 0:00:35]} 19. Qc2 {[%emt 0:05:00]} Bd5 {[%emt 0:03:30]} 20. Bf3 {[%emt 0:03:14]} g6 {[%emt 0:07:10]} 21. Rb1 {[%emt 0:10:02]} O-O {[%emt 0:03:46]} 22. h3 {[%emt 0:03:39]} Kg7 {[%emt 0:03:36]} 23. Bxd5 {[%emt 0:03:27]} Rxd5 {[%emt 0:01:32]} 24. Nef3 {[%emt 0:01:02]} Rdd8 {[%emt 0:02:52]} 25. Ne4 {[%emt 0:01:34]} Qc6 {[%emt 0:02:10]} 26. Rfe1 {[%emt 0:00:24]} Qd5 {[%emt 0:02:28]} 27. Nfg5 {[%emt 0:03:18]} Rb8 {[%emt 0:02:45]} 28. Qe2 {[%emt 0:05:25]} b5 {[%emt 0:01:36]} 29. g4 {[%emt 0:05:24]} hxg4 {[%emt 0:01:10]} 30. hxg4 {[%emt 0:00:00]} Nh6 {[%emt 0:00:56]} 31. Rbd1 {[%emt 0:11:50]} Nc6 {[%emt 0:01:10]} 32. a3 {[%emt 0:01:34]} a5 {[%emt 0:00:43]} 33. Qf3 {[%emt 0:16:22]} b4 {[%emt 0:02:27]} 34. Qg3 {[%emt 0:00:39]} bxa3 {[%emt 0:00:56]} 35. Nf6 {[%emt 0:02:33]} Bxf6 {[%emt 0:01:59]} 36. exf6+ {[%emt 0:00:02]} Kxf6 {[%emt 0:00:28]} 37. Re5 {[%emt 0:00:52]} Qd7 {[%emt 0:00:49]} 38. Ne4+ {[%emt 0:01:59]} Kg7 {[%emt 0:00:34]} 39. Qh4 {[%emt 0:00:00]} Nxe5 {[%emt 0:06:14]} 40. Qf6+ {[%emt 0:00:00]} Kh7 {[%emt 0:00:00]} 41. fxe5 {[%emt 0:15:27]} Qd8 {[%emt 0:08:41]} 42. Ra1 {[%emt 0:14:40]} Qxf6 {[%emt 0:05:24]} 43. Nxf6+ {[%emt 0:00:02]} Kg7 {[%emt 0:00:15]} 44. Rxa3 {[%emt 0:00:51]} Rb5 {[%emt 0:00:51]} 45. Kg2 {[%emt 0:01:19]} Ra8 {[%emt 0:00:42]} 46. Ra4 {[%emt 0:01:24]} g5 {[%emt 0:01:09]} 47. Kf3 {[%emt 0:01:04]} Rb1 {[%emt 0:00:53]} 48. Be3 {[%emt 0:00:41]} Kg6 {[%emt 0:00:33]} 49. Ne4 {[%emt 0:00:12]} Re1 {[%emt 0:04:30]} 50. Nd2 {[%emt 0:00:49]} Nxg4 {[%emt 0:01:30]} 51. Nxc4 {[%emt 0:00:02]} Nxe3 {[%emt 0:00:35]} 52. Nxe3 {[%emt 0:00:01]} Rc1 {[%emt 0:00:35]} 53. c4 {[%emt 0:00:19]} Rc3 {[%emt 0:00:42]} 54. Ke4 {[%emt 0:00:09]} Rh8 {[%emt 0:01:03]} 55. Ng2 {[%emt 0:01:40]} Rh2 {[%emt 0:00:44]} 56. Ra2 {[%emt 0:00:02]} Rch3 {[%emt 0:01:32]} 57. d5 {[%emt 0:00:30]} exd5+ {[%emt 0:00:56]} 58. cxd5 {[%emt 0:00:13]} f5+ {[%emt 0:00:17]} 59. Kd4 {[%emt 0:00:49]} f4 {[%emt 0:00:23]} 60. d6 {[%emt 0:00:43]} Kf7 {[%emt 0:00:48]} 61. Kd5 {[%emt 0:00:43]} f3 {[%emt 0:00:39]} 62. e6+ {[%emt 0:00:19]} Kf6 {[%emt 0:00:25]} 63. d7 {[%emt 0:00:58]} Ke7 {[%emt 0:02:13]} 64. Rxa5 {[%emt 0:00:26]} fxg2 {[%emt 0:00:56]} 65. d8=Q+ {[%emt 0:00:39]} Kxd8 {[%emt 0:00:06]} 66. Ra8+ {[%emt 0:00:16]} Ke7 {[%emt 0:00:05]} 67. Ra7+ {[%emt 0:00:05]} Kf6 {[%emt 0:00:08]} 68. e7 {[%emt 0:01:04]} Re3 {[%emt 0:00:15]} 1/2-1/2